bitfinex/quotes_SOLUSD_20251006
["timestamp","ask_amount","ask_price","bid_price","bid_amount"]
[1759724086758,84.10629845,231.68,231.64,0.69]
[1759724087338,0.69,231.67,231.63,30.14]
[1759724087738,0.69,231.67,231.63,30.82]
[1759724088461,4.31667098,231.66,231.65,20.8]
[1759724090738,5.03667098,231.66,231.65,20.8]
[1759724090952,4.31667098,231.66,231.65,20.8]
[1759724092658,5.03630331,231.68,231.65,20.8]
[1759724093365,15.10704916,231.68,231.65,20.8]
[1759724093560,15.82704916,231.68,231.65,20.8]
[1759724093955,5.03630331,231.68,231.65,21.48]
[1759724094875,4.31611204,231.69,231.65,21.48]
[1759724095078,5.03611204,231.69,231.65,21.48]
[1759724096166,4.31611204,231.69,231.66,20.8]
[1759724096366,0.2,231.7,231.67,0.68]
[1759724096870,4.51593596,231.7,231.68,0.68]
[1759724097967,4.51593596,231.7,231.66,30.82]
[1759724098169,4.51593596,231.7,231.66,30.14]
[1759724098369,4.51593596,231.7,231.67,0.68]
[1759724100268,0.2,231.7,231.69,20.8]
[1759724100475,0.2,231.7,231.69,51.6]
[1759724101546,0.2,231.7,231.69,30.8]
[1759724103770,0.2,231.7,231.69,41.67647521]
[1759724104361,0.2,231.7,231.69,11.55647521]
[1759724104569,0.2,231.7,231.69,41.67647521]
[1759724104872,0.2,231.7,231.69,30.8]
[1759724105072,0.2,231.7,231.69,30.12]
[1759724105774,5.23592576,231.7,231.62,0.68]
[1759724105958,5.23592576,231.7,231.63,30.12]
[1759724106162,4.31629834,231.68,231.63,30.12]
[1759724106359,0.72,231.67,231.63,30.12]
[1759724106675,4.31629834,231.68,231.63,51.6]
[1759724106879,0.72,231.67,231.63,50.92]
[1759724107073,0.72,231.66,231.65,20.8]
[1759724107276,15.10704419,231.68,231.65,20.8]
[1759724107475,0.72,231.67,231.65,20.8]
[1759724107669,4.31629834,231.68,231.65,20.8]
[1759724107979,0.2,231.7,231.66,51.6]
[1759724108178,0.72,231.69,231.68,20.8]
[1759724108379,5.03611204,231.69,231.67,20.8]
[1759724108579,0.72,231.68,231.67,20.8]
[1759724109451,0.72,231.68,231.64,50.92]
[1759724109662,0.72,231.67,231.66,20.8]
[1759724109862,5.03648465,231.67,231.66,20.8]
[1759724111782,4.31648465,231.67,231.66,20.8]
[1759724112285,5.03648465,231.67,231.66,20.8]
[1759724112962,5.03611204,231.69,231.66,20.8]
[1759724113580,0.72,231.68,231.66,20.8]
[1759724114486,0.2,231.7,231.67,30.8]
[1759724114788,4.51598691,231.7,231.68,30.12]
[1759724116482,4.51598691,231.7,231.68,50.92]
[1759724117067,5.23598691,231.7,231.68,50.92]
[1759724118979,0.66,231.69,231.68,20.8]
[1759724119181,0.66,231.69,231.67,30.12]
[1759724119376,0.66,231.68,231.66,30.12]
[1759724119591,15.30580132,231.7,231.66,30.12]
[1759724119766,0.66,231.69,231.66,30.12]
[1759724119962,0.66,231.68,231.66,30.12]
[1759724120974,4.31648465,231.67,231.66,30.12]
[1759724125972,15.10639215,231.69,231.66,30.12]
[1759724126274,15.76639215,231.69,231.66,30.12]
[1759724132009,4.31611204,231.69,231.67,0.7]
[1759724132802,0.2,231.7,231.64,20.8]
[1759724132803,0.2,231.7,231.68,30.82]
[1759724132985,0.2,231.7,231.69,40.99647521]
[1759724133195,0.2,231.7,231.69,41.69647521]
[1759724134815,0.2,231.7,231.69,50.92]
[1759724134995,0.2,231.7,231.69,51.58]
[1759724143499,0.2,231.7,231.69,30.78]
[1759724144205,0.2,231.7,231.69,41.65647521]
[1759724144403,0.2,231.7,231.69,45.97258725]
[1759724150806,0.2,231.7,231.69,41.65647521]
[1759724151006,0.2,231.7,231.69,45.97258725]
[1759724155111,0.2,231.7,231.69,47.69832446]
[1759724156215,0.2,231.7,231.69,52.52527437]
[1759724157627,0.2,231.7,231.69,52.56527437]
[1759724157813,0.2,231.7,231.69,48.22916233]
[1759724158016,0.2,231.7,231.69,43.40221242]
[1759724158424,0.2,231.7,231.69,47.71832446]
[1759724159120,0.2,231.7,231.69,42.70221242]
[1759724159801,0.2,231.7,231.69,47.01832446]
[1759724160008,0.2,231.7,231.69,42.70221242]
[1759724160324,0.2,231.7,231.69,30.1]
[1759724160325,0.92,231.7,231.69,30.1]
[1759724162026,0.92,231.7,231.65,20.8]
[1759724162210,4.51596342,231.7,231.69,20.8]
[1759724162529,0.2,231.7,231.69,50.9]
[1759724162904,0.92,231.7,231.69,50.9]
[1759724164427,5.23592576,231.7,231.68,30.1]
[1759724164624,0.72,231.69,231.62,4.31581057]
[1759724164833,0.72,231.68,231.63,30.1]
[1759724164999,0.72,231.67,231.64,50.9]
[1759724165206,0.2,231.7,231.68,20.8]
[1759724165405,0.2,231.7,231.69,30.1]
[1759724166527,0.92,231.7,231.69,30.1]
[1759724167908,0.92,231.7,231.69,50.9]
[1759724168803,5.23592576,231.7,231.69,30.1]
[1759724169404,5.23592576,231.7,231.61,21.86466306]
[1759724169405,5.23592576,231.7,231.67,30.1]
[1759724169621,0.72,231.69,231.67,30.1]
[1759724169827,0.72,231.68,231.67,30.1]
[1759724170024,5.03629834,231.68,231.67,30.1]
[1759724170326,0.72,231.68,231.67,30.1]
[1759724173820,0.2,231.7,231.69,20.8]
[1759724174022,0.2,231.7,231.69,50.9]
[1759724178122,0.2,231.7,231.69,62.48647521]
[1759724178648,0.2,231.7,231.69,66.80258725]
[1759724179012,0.2,231.7,231.69,68.52854785]
[1759724179416,0.2,231.7,231.69,64.21243581]
[1759724180828,0.2,231.7,231.69,68.52854785]
[1759724185127,0.2,231.7,231.69,64.21243581]
[1759724185451,0.2,231.7,231.69,68.52854785]
[1759724195651,0.2,231.7,231.69,64.21243581]
[1759724196232,0.2,231.7,231.69,68.52854785]
[1759724197857,0.2,231.7,231.69,68.48854785]
[1759724198450,1e-08,231.7,231.69,68.92015905]
[1759724198631,1e-08,231.7,231.69,68.48854785]
[1759724199831,1e-08,231.7,231.69,93.31549776]
[1759724200248,1e-08,231.7,231.69,73.31549776]
[1759724200462,1e-08,231.7,231.69,93.31549776]
[1759724201636,0.2,231.72,231.69,104.10577787]
[1759724201841,0.2,231.72,231.7,11.54647521]
[1759724202136,0.2,231.72,231.71,40.97647521]
[1759724202349,0.2,231.72,231.71,43.37176581]
[1759724204240,0.2,231.72,231.71,47.68750531]
[1759724207654,0.2,231.72,231.71,47.66750531]
[1759724217655,0.2,231.72,231.71,54.91850107]
[1759724220866,0.2,231.72,231.71,54.24850107]
[1759724221167,0.2,231.72,231.71,54.93850107]
[1759724222788,0.2,231.74,231.73,10.87647521]
[1759724223087,0.2,231.74,231.73,40.95647521]
[1759724223371,1e-08,231.74,231.73,45.96184223]
[1759724223544,1e-08,231.74,231.73,46.99698401]
[1759724224245,0.72000001,231.74,231.73,37.71698401]
[1759724224442,0.72000001,231.74,231.73,46.99698401]
[1759724225771,0.72000001,231.74,231.73,16.91698401]
[1759724225966,0.72000001,231.74,231.73,51.82685293]
[1759724226673,0.72000001,231.74,231.73,51.82658888]
[1759724227754,0.72000001,231.74,231.73,46.99698401]
[1759724228460,0.72000001,231.74,231.73,51.82595987]
[1759724230074,0.72000001,231.74,231.73,42.68161699]
[1759724239879,0.72000001,231.74,231.73,31.80514178]
[1759724246774,79.82000001,231.74,231.73,31.80514178]
[1759724247384,79.10000001,231.74,231.73,42.68161699]
[1759724249987,79.82000001,231.74,231.73,42.68161699]
[1759724251286,79.10000001,231.74,231.73,42.68161699]
[1759724253389,79.77000001,231.74,231.73,42.68161699]
[1759724258288,79.10000001,231.74,231.73,43.39161699]
[1759724258495,79.10000001,231.74,231.73,47.70698401]
[1759724258496,1e-08,231.74,231.73,47.70698401]
[1759724258679,1e-08,231.74,231.73,52.53595987]
[1759724260272,0.67000001,231.74,231.73,12.60161699]
[1759724260473,0.67000001,231.74,231.73,42.68161699]
[1759724263678,1e-08,231.74,231.73,42.68161699]
[1759724264079,0.67000001,231.74,231.73,42.68161699]
[1759724266702,1e-08,231.74,231.73,42.68161699]
[1759724267000,0.67000001,231.74,231.73,42.68161699]
[1759724268801,1e-08,231.74,231.73,42.68161699]
[1759724269380,0.70000001,231.74,231.73,42.68161699]
[1759724270592,1e-08,231.74,231.73,42.68161699]
[1759724271913,1e-08,231.74,231.73,43.36161699]
[1759724272210,1e-08,231.74,231.73,42.68161699]
[1759724279601,1e-08,231.74,231.73,47.67698401]
[1759724282613,1e-08,231.74,231.73,17.59698401]
[1759724282792,1e-08,231.74,231.73,47.65698401]
[1759724283117,1e-08,231.74,231.73,54.90797977]
[1759724283304,1e-08,231.74,231.73,24.84797977]
[1759724283486,1e-08,231.74,231.73,54.90797977]
[1759724283687,1e-08,231.74,231.73,47.65698401]
[1759724288797,1e-08,231.74,231.73,54.90797977]
[1759724289323,1e-08,231.74,231.73,47.65698401]
[1759724290521,1e-08,231.74,231.73,17.59698401]
[1759724290691,1e-08,231.74,231.73,54.9098146]
[1759724290892,1e-08,231.74,231.73,46.97698401]
[1759724293807,1e-08,231.74,231.73,47.65698401]
[1759724296708,1e-08,231.75,231.74,10.87647521]
[1759724296919,1e-08,231.75,231.74,11.55647521]
[1759724297420,1e-08,231.75,231.74,24.49503859]
[1759724300125,1e-08,231.75,231.74,28.81021939]
[1759724302433,1e-08,231.75,231.74,28.13021939]
[1759724302724,0.71000001,231.75,231.74,28.13021939]
[1759724302926,0.71000001,231.75,231.74,58.17021939]
[1759724306312,1e-08,231.75,231.74,58.17021939]
[1759724306522,0.71000001,231.75,231.74,58.17021939]
[1759724306711,0.71000001,231.75,231.74,63.00338733]
[1759724308037,0.71000001,231.75,231.74,32.96338733]
[1759724308223,0.71000001,231.75,231.74,63.00338733]
[1759724312739,1e-08,231.75,231.74,63.00338733]
[1759724312942,1e-08,231.75,231.74,58.89021939]
[1759724315228,1e-08,231.75,231.74,58.17021939]
[1759724315550,1e-08,231.75,231.74,58.89021939]
[1759724317629,1e-08,231.75,231.74,66.14304998]
[1759724318147,1e-08,231.75,231.74,58.89021939]
[1759724318351,1e-08,231.75,231.74,58.17021939]
[1759724318641,1e-08,231.75,231.74,58.89021939]
[1759724318945,1e-08,231.75,231.74,58.17021939]
[1759724319742,1e-08,231.75,231.74,58.89021939]
[1759724322950,1e-08,231.75,231.74,66.14304998]
[1759724323349,0.71000001,231.75,231.74,65.42304998]
[1759724323545,1e-08,231.75,231.74,65.42304998]
[1759724323962,1e-08,231.75,231.74,58.17021939]
[1759724324270,1e-08,231.75,231.74,65.42304998]
[1759724326361,0.71000001,231.75,231.74,65.42304998]
[1759724326668,0.71000001,231.75,231.74,58.17021939]
[1759724327057,1e-08,231.75,231.74,58.17021939]
[1759724330449,1e-08,231.75,231.74,58.83021939]
[1759724330850,1e-08,231.75,231.74,58.17021939]
[1759724331968,1e-08,231.75,231.74,58.83021939]
[1759724333950,1e-08,231.75,231.74,58.17021939]
[1759724334776,0.66000001,231.75,231.74,58.17021939]
[1759724335650,1e-08,231.75,231.74,58.17021939]
[1759724336370,0.66000001,231.75,231.74,28.13021939]
[1759724336575,0.66000001,231.75,231.74,65.43271137]
[1759724338159,0.66000001,231.75,231.74,58.17021939]
[1759724340276,1e-08,231.75,231.74,58.17021939]
[1759724340489,1e-08,231.75,231.74,66.09271137]
[1759724340858,1e-08,231.75,231.74,58.83021939]
[1759724341273,1e-08,231.75,231.74,65.43322987]
[1759724342093,0.66000001,231.75,231.74,65.43322987]
[1759724342666,1e-08,231.75,231.74,65.43322987]
[1759724343787,0.66000001,231.75,231.74,58.17021939]
[1759724344980,1e-08,231.75,231.74,58.17021939]
[1759724345480,0.66000001,231.75,231.74,58.17021939]
[1759724350990,1e-08,231.75,231.74,58.83021939]
[1759724351294,1e-08,231.75,231.74,58.17021939]
[1759724352290,1e-08,231.75,231.74,27.18021939]
[1759724352480,3.59165463,231.75,231.56,7.26301048]
[1759724352664,3.59165463,231.75,231.5,0.2]
[1759724352665,20.8,231.64,231.5,0.2]
[1759724352865,26.87506073,231.63,231.5,0.2]
[1759724353078,6.07500662,231.62,231.5,20.98]
[1759724353285,3.19856941,231.61,231.5,20.98]
[1759724353479,3.19856941,231.6,231.5,20.98]
[1759724353689,3.19856941,231.59,231.5,20.98]
[1759724353903,3.19856941,231.58,231.5,20.98]
[1759724354106,7.33263599,231.62,231.5,20.98]
[1759724354107,3.19856941,231.57,231.5,20.98]
[1759724354275,3.19856941,231.56,231.5,20.98]
[1759724354481,3.19856941,231.55,231.5,20.98]
[1759724354680,3.19856941,231.54,231.5,20.98]
[1759724354879,3.19856941,231.53,231.5,20.98]
[1759724355072,3.19856941,231.52,231.5,20.98]
[1759724355277,3.19856941,231.51,231.5,0.2]
[1759724355871,4.31788137,231.6,231.5,0.2]
[1759724356097,3.16932061,231.59,231.51,31.0]
[1759724356285,3.16932061,231.58,231.51,31.0]
[1759724356479,3.16932061,231.57,231.51,31.0]
[1759724356679,3.16932061,231.56,231.51,31.0]
[1759724356893,3.16478203,231.55,231.51,31.0]
[1759724357196,3.16478203,231.54,231.51,31.0]
[1759724357399,3.16478203,231.53,231.5,0.2]
[1759724357688,3.16478203,231.52,231.5,0.2]
[1759724358002,4.31819585,231.58,231.5,0.2]
[1759724358199,3.16083314,231.57,231.5,0.2]
[1759724358672,10.79406001,231.61,231.5,0.2]
[1759724358673,1.34992683,231.59,231.5,0.2]
[1759724358874,3.15725386,231.58,231.5,0.2]
[1759724359078,5.66806065,231.59,231.5,0.2]
[1759724359400,3.15502091,231.58,231.5,0.2]
[1759724361293,4.31834866,231.57,231.5,21.0]
[1759724362006,49.1891112,231.62,231.5,21.0]
[1759724362007,8.68256282,231.62,231.5,21.72]
[1759724362179,3.1495647,231.61,231.5,21.72]
[1759724362496,3.1495647,231.6,231.5,21.72]
[1759724362673,3.1495647,231.59,231.5,21.72]
[1759724362873,8.68256282,231.62,231.5,21.72]
[1759724363077,3.14776207,231.61,231.5,21.72]
[1759724363295,3.14776207,231.6,231.5,0.92]
[1759724363497,3.14776207,231.59,231.51,20.8]
[1759724363692,216.44776207,231.58,231.51,20.8]
[1759724364008,213.3,231.58,231.51,20.8]
[1759724364909,217.61821464,231.58,231.5,0.92]
[1759724365086,217.61821464,231.58,231.51,20.8]
[1759724366013,217.61821464,231.58,231.5,21.72]
[1759724366014,3.14330638,231.57,231.5,21.72]
[1759724366188,217.61821464,231.58,231.5,21.72]
[1759724366385,7.46094669,231.57,231.5,21.72]
[1759724366700,4.31843328,231.57,231.5,21.72]
[1759724368401,3.14048955,231.56,231.5,21.72]
[1759724368603,79.1,231.55,231.5,21.72]
[1759724368908,79.1,231.54,231.5,21.72]
[1759724370807,79.1,231.54,231.51,0.72]
[1759724371409,79.1,231.54,231.52,0.72]
[1759724371710,79.1,231.54,231.53,0.72]
[1759724375099,79.1,231.54,231.52,30.88]
[1759724375586,79.1,231.54,231.52,20.8]
[1759724377622,213.3,231.53,231.52,20.8]
[1759724379414,216.44088528,231.53,231.52,20.8]
[1759724383404,3.14088528,231.53,231.52,20.8]
[1759724385731,3.14088528,231.53,231.52,21.52]
[1759724393617,3.16711979,231.53,231.52,21.52]
[1759724394210,4.31853515,231.56,231.52,21.52]
[1759724394410,3.17192839,231.55,231.52,21.52]
[1759724394716,3.17192839,231.54,231.52,21.47]
[1759724395047,4.31873571,231.55,231.53,0.67]
[1759724395251,3.17205881,231.54,231.53,0.67]
[1759724397332,6.05189714,231.54,231.53,0.67]
[1759724397538,3.17205881,231.54,231.53,0.67]
[1759724399139,4.31834866,231.57,231.53,0.67]
[1759724399332,4.31834866,231.57,231.52,20.8]
[1759724399333,4.31834866,231.57,231.54,0.67]
[1759724399530,4.31834866,231.57,231.55,0.67]
[1759724399756,4.31834866,231.57,231.52,20.8]
[1759724399757,78.43,231.53,231.52,20.8]
[1759724400656,134.2,231.56,231.53,10.87647521]
[1759724400960,134.2,231.56,231.54,30.66]
[1759724401734,134.2,231.56,231.55,0.67]
[1759724401937,134.2,231.56,231.55,11.54647521]
[1759724402570,134.2,231.56,231.55,15.86519686]
[1759724403061,79.1,231.61,231.55,4.98872165]
[1759724403239,79.1,231.61,231.58,20.8]
[1759724403434,79.1,231.61,231.59,31.33]
[1759724403642,79.1,231.61,231.6,0.67]
[1759724411964,79.1,231.61,231.59,30.66]
[1759724412169,79.1,231.61,231.59,31.33]
[1759724412463,79.1,231.61,231.6,0.67]
[1759724413170,134.2,231.63,231.62,20.8]
[1759724415562,134.2,231.63,231.62,21.47]
[1759724415764,134.2,231.63,231.62,31.21]
[1759724417171,134.2,231.63,231.62,35.52741645]
[1759724417964,134.2,231.63,231.62,31.21]
[1759724418146,134.2,231.63,231.62,35.52741645]
[1759724419964,134.86,231.63,231.57,0.71]
[1759724420171,134.2,231.62,231.58,30.54]
[1759724420469,134.2,231.62,231.61,20.8]
[1759724420470,134.86,231.62,231.61,20.8]
[1759724420639,134.86,231.62,231.58,30.54]
[1759724420842,0.66,231.61,231.6,20.8]
[1759724421959,213.3,231.62,231.6,20.8]
[1759724422150,213.96,231.62,231.6,20.8]
[1759724422568,0.66,231.61,231.6,20.8]
[1759724423243,213.3,231.62,231.6,20.8]
[1759724423961,213.3,231.62,231.58,31.25]
[1759724424552,213.3,231.62,231.59,0.71]
[1759724424748,213.3,231.62,231.58,30.54]
[1759724424968,213.3,231.61,231.58,31.25]
[1759724426551,213.3,231.61,231.59,0.71]
[1759724426960,213.3,231.61,231.6,20.8]
[1759724430870,35.47679893,231.66,231.61,20.8]
[1759724431064,0.66,231.66,231.61,52.01]
[1759724431569,4.97675199,231.66,231.61,52.01]
[1759724432774,0.66,231.65,231.61,52.01]
[1759724433069,4.31648465,231.67,231.61,52.01]
[1759724433249,4.97648465,231.67,231.61,52.01]
[1759724433869,0.67,231.66,231.61,52.01]
[1759724434071,4.31648465,231.67,231.61,52.01]
[1759724434267,4.31685732,231.65,231.61,52.01]
[1759724435875,31.13,231.69,231.62,0.66]
[1759724436169,213.3,231.68,231.66,20.8]
[1759724436345,213.3,231.68,231.65,31.12]
[1759724436551,0.67,231.67,231.65,30.46]
[1759724436768,0.67,231.66,231.65,30.46]
[1759724436959,213.3,231.68,231.65,30.46]
[1759724437151,213.97,231.68,231.65,30.46]
[1759724437551,213.97,231.68,231.65,31.12]
[1759724437552,79.1,231.67,231.65,31.12]
[1759724438173,79.1,231.67,231.65,30.46]
[1759724439488,79.1,231.67,231.65,31.12]
[1759724439660,79.1,231.67,231.66,0.66]
[1759724442888,4.3157395,231.71,231.68,20.8]
[1759724443069,58.3,231.67,231.66,0.66]
[1759724443271,58.3,231.67,231.66,31.12]
[1759724444073,58.3,231.67,231.66,35.25530373]
[1759724444589,58.3,231.67,231.66,31.12]
[1759724448282,134.2,231.7,231.69,20.8]
[1759724448467,134.2,231.7,231.69,51.91]
[1759724458697,58.3,231.71,231.69,51.91]
[1759724458901,58.3,231.71,231.7,0.69]
[1759724459889,58.3,231.71,231.69,51.22]
[1759724460098,58.3,231.71,231.69,51.91]
[1759724460298,58.3,231.71,231.7,0.69]
[1759724461000,1e-08,231.75,231.7,0.69]
[1759724461304,1e-08,231.75,231.74,20.8]
[1759724461478,1e-08,231.75,231.74,51.14]
[1759724462695,1e-08,231.75,231.74,51.83]
[1759724468288,1e-08,231.75,231.74,67.02165601]
[1759724472112,1e-08,231.75,231.74,68.74702103]
[1759724493024,1e-08,231.75,231.74,68.05702103]
[1759724493528,1e-08,231.75,231.74,68.74702103]
[1759724493917,58.96,231.79,231.74,68.74702103]
[1759724494125,21.13646574,231.79,231.78,31.67647521]
[1759724494326,21.13646574,231.79,231.78,61.87647521]
[1759724495108,0.2,231.81,231.78,61.87647521]
[1759724498915,0.2,231.81,231.78,66.8809085]
[1759724499115,0.2,231.81,231.78,66.1909085]
[1759724500214,0.2,231.81,231.78,66.8809085]
[1759724500952,0.2,231.81,231.78,62.56647521]
[1759724501132,0.2,231.81,231.78,51.0]
[1759724502217,0.2,231.81,231.79,0.69]
[1759724502422,0.2,231.81,231.8,30.2]
[1759724508737,0.2,231.81,231.8,30.89]
[1759724509725,0.2,231.81,231.8,30.2]
[1759724510459,0.2,231.81,231.8,30.89]
[1759724518457,0.2,231.81,231.8,51.69]
[1759724518658,0.2,231.81,231.8,35.20406384]
[1759724523977,0.2,231.81,231.8,46.08053905]
[1759724524470,0.2,231.81,231.8,59.01910243]
[1759724526288,0.2,231.81,231.8,13.62856338]
[1759724526481,0.2,231.81,231.8,30.2]
[1759724526863,0.2,231.81,231.8,30.89]
[1759724527064,0.2,231.81,231.79,12.93912143]
[1759724527361,0.2,231.81,231.8,51.0]
[1759724529297,0.2,231.81,231.8,51.69]
[1759724530488,0.2,231.81,231.8,56.00406384]
[1759724530689,0.2,231.81,231.8,66.88053905]
[1759724530888,0.2,231.84,231.83,31.67647521]
[1759724531190,134.2,231.93,231.86,31.67647521]
[1759724531491,134.2,231.93,231.86,61.87647521]
[1759724531674,134.2,231.93,231.86,64.29102197]
[1759724532288,0.41,231.9,231.86,52.72454676]
[1759724532495,0.41,231.9,231.86,22.52454676]
[1759724532791,0.2,231.9,231.86,30.2]
[1759724536696,4.51221472,231.9,231.86,30.2]
[1759724536887,4.72221472,231.9,231.86,30.2]
[1759724539400,4.31240218,231.89,231.86,30.2]
[1759724540293,4.31240218,231.89,231.86,30.9]
[1759724540497,0.2,231.9,231.86,30.9]
[1759724540696,79.3,231.9,231.86,30.9]
[1759724540901,79.3,231.9,231.86,30.2]
[1759724541080,79.3,231.9,231.86,30.9]
[1759724544396,79.3,231.9,231.86,43.83577388]
[1759724544604,79.3,231.9,231.86,48.14872134]
[1759724544996,79.3,231.9,231.86,59.02519655]
[1759724546016,79.3,231.9,231.86,54.71224909]
[1759724547613,79.3,231.9,231.86,59.02519655]
[1759724549822,0.2,231.9,231.86,54.71224909]
[1759724551106,0.2,231.9,231.86,54.69224909]
[1759724554611,0.2,231.9,231.86,59.00519655]
[1759724554816,0.2,231.9,231.89,20.8]
[1759724555013,0.2,231.9,231.89,50.98]
[1759724555226,0.2,231.9,231.89,51.68]
[1759724555492,0.2,231.9,231.89,64.61410075]
[1759724556925,0.2,231.9,231.89,75.49057596]
[1759724559328,0.2,231.9,231.89,79.80296545]
[1759724562514,0.2,231.9,231.89,75.49057596]
[1759724563730,0.2,231.9,231.89,79.80296545]
[1759724565028,0.2,231.9,231.89,75.49057596]
[1759724565333,0.2,231.9,231.89,62.55647521]
[1759724567136,0.2,231.9,231.89,66.8688647]
[1759724567834,0.2,231.9,231.89,62.55647521]
[1759724568033,0.2,231.9,231.89,66.8688647]
[1759724569834,0.2,231.9,231.89,62.55647521]
[1759724572537,0.2,231.9,231.89,30.18]
[1759724572717,0.2,231.9,231.89,30.16]
[1759724573917,0.2,231.9,231.89,30.85]
[1759724579934,0.2,231.9,231.89,46.0388647]
[1759724581547,0.2,231.9,231.89,41.72647521]
[1759724584126,0.2,231.9,231.89,30.16]
[1759724584329,0.2,231.9,231.89,41.72647521]
[1759724584647,0.2,231.9,231.89,46.0388647]
[1759724586622,0.2,231.92,231.91,20.8]
[1759724586819,0.2,231.92,231.91,50.96]
[1759724587021,0.2,231.92,231.91,51.65]
[1759724592538,0.2,231.92,231.91,62.52647521]
[1759724592744,0.2,231.92,231.91,66.8384928]
[1759724593036,0.2,231.94,231.92,10.87647521]
[1759724593346,0.2,231.96,231.95,20.8]
[1759724593551,0.2,231.96,231.95,50.96]
[1759724593740,0.2,231.96,231.95,51.65]
[1759724594353,0.2,231.96,231.95,50.96]
[1759724594739,0.2,231.96,231.95,51.65]
[1759724595247,0.2,231.96,231.95,55.47250324]
[1759724596640,0.1,231.98,231.95,59.78377722]
[1759724596834,0.1,231.98,231.96,0.69]
[1759724597052,0.1,231.98,231.97,30.16]
[1759724597265,0.1,231.98,231.97,30.85]
[1759724597438,79.2,231.99,231.97,30.85]
[1759724597764,0.2,232.02,232.01,20.8]
[1759724597937,0.2,232.02,232.01,50.96]
[1759724598338,0.2,232.02,232.01,51.68]
[1759724605463,0.2,232.02,232.01,66.86663425]
[1759724607258,0.2,232.02,232.01,62.55647521]
[1759724607653,0.2,232.02,232.01,32.39647521]
[1759724607851,0.2,232.02,232.01,50.94]
[1759724609665,0.2,232.02,232.01,51.66]
[1759724610364,0.2,232.02,232.01,20.8]
[1759724610568,0.2,232.02,232.01,50.94]
[1759724611570,0.41,232.02,232.01,50.94]
[1759724613162,0.2,232.02,232.01,50.94]
[1759724614369,0.2,232.02,232.01,50.92]
[1759724619666,0.2,232.02,232.01,51.59]
[1759724629765,0.2,232.02,232.01,66.77663425]
[1759724630170,0.2,232.02,232.01,79.7029328]
[1759724639381,79.1,232.04,232.02,10.87647521]
[1759724639680,79.1,232.04,232.03,30.82]
[1759724640068,79.1,232.04,232.03,43.74462787]
[1759724640370,0.2,232.05,232.04,10.87647521]
[1759724640689,0.2,232.05,232.04,11.59647521]
[1759724641190,0.2,232.05,232.04,24.52110308]
[1759724641855,0.2,232.05,232.04,12.92462787]
[1759724642060,0.2,232.05,232.0,20.8]
[1759724642061,0.41,232.05,232.0,20.8]
[1759724642278,0.41,232.05,232.01,50.9]
[1759724642478,0.41,232.05,232.04,20.8]
[1759724642690,0.41,232.05,232.04,50.9]
[1759724642885,0.2,232.05,232.04,50.9]
[1759724645078,4.71941607,232.05,232.04,30.1]
[1759724645963,0.2,232.05,232.04,30.1]
[1759724648788,4.50941607,232.05,232.04,30.1]
[1759724649162,0.2,232.05,232.04,30.1]
[1759724649971,4.50941607,232.05,232.04,30.1]